[Event "Titled Tuesday Blitz March 28 Early 2023"]
[White "Barria Santos, Jose Guilherme"]
[Black "Belov, Alexei"]
[WhiteFideId "1939300"]
[BlackFideId "4128206"]
[WhiteElo "2301"]
[BlackElo "2537"]
[Result "0-1"]
[Round "03"]
[TimeControl "180+2"]
[Date "2023.03.28"]
[WhiteClock "0:00:08"]
[BlackClock "0:01:18"]

1. e4 {[%clk 0:03:00]}  e6 {[%clk 0:03:00]} 2. d4 {[%clk 0:03:01]}  d5 {[%clk 0:03:00]} 3. Nc3 {[%clk 0:03:01]}  Nf6 {[%clk 0:03:00]} 4. e5 {[%clk 0:03:01]}  Ne4 {[%clk 0:03:00]} 5. Bd3 {[%clk 0:02:50]}  Nxc3 {[%clk 0:02:59]} 6. bxc3 {[%clk 0:02:50]}  c5 {[%clk 0:03:00]} 7. Nf3 {[%clk 0:02:49]}  Nc6 {[%clk 0:03:00]} 8. O-O {[%clk 0:02:46]}  Qc7 {[%clk 0:02:59]} 9. a4 {[%clk 0:02:44]}  cxd4 {[%clk 0:02:54]} 10. cxd4 {[%clk 0:02:44]}  Bd7 {[%clk 0:02:53]} 11. Ba3 {[%clk 0:02:43]}  Bxa3 {[%clk 0:02:49]} 12. Rxa3 {[%clk 0:02:43]}  h6 {[%clk 0:02:46]} 13. Qd2 {[%clk 0:02:22]}  Na5 {[%clk 0:02:41]} 14. Qb4 {[%clk 0:02:12]}  Rc8 {[%clk 0:02:33]} 15. Nd2 {[%clk 0:02:05]}  b6 {[%clk 0:02:32]} 16. f4 {[%clk 0:02:03]}  Qd8 {[%clk 0:02:13]} 17. f5 {[%clk 0:02:02]}  exf5 {[%clk 0:02:06]} 18. Bxf5 {[%clk 0:01:51]}  Bxf5 {[%clk 0:02:00]} 19. Rxf5 {[%clk 0:01:51]}  Qe7 {[%clk 0:01:59]} 20. Qb5+ {[%clk 0:01:46]}  Qd7 {[%clk 0:01:59]} 21. Qxd7+ {[%clk 0:01:44]}  Kxd7 {[%clk 0:01:59]} 22. Rxf7+ {[%clk 0:01:45]}  Ke6 {[%clk 0:01:59]} 23. Raf3 {[%clk 0:01:30]}  Rxc2 {[%clk 0:01:56]} 24. Nf1 {[%clk 0:01:22]}  Nc6 {[%clk 0:01:49]} 25. Rxg7 {[%clk 0:00:33]}  Nxd4 {[%clk 0:01:49]} 26. Rff7 {[%clk 0:00:17]}  Re8 {[%clk 0:01:38]} 27. Ne3 {[%clk 0:00:15]}  Rc1+ {[%clk 0:01:31]} 28. Kf2 {[%clk 0:00:14]}  Kxe5 {[%clk 0:01:31]} 29. Re7+ {[%clk 0:00:11]}  Rxe7 {[%clk 0:01:30]} 30. Rxe7+ {[%clk 0:00:12]}  Kd6 {[%clk 0:01:27]} 31. Rxa7 {[%clk 0:00:11]}  Ra1 {[%clk 0:01:21]} 32. Rh7 {[%clk 0:00:11]}  Ra2+ {[%clk 0:01:21]} 33. Kg3 {[%clk 0:00:11]}  Ra3 {[%clk 0:01:18]} 34. Rxh6+ {[%clk 0:00:10]}  Kc5 {[%clk 0:01:18]} 35. Kf4 {[%clk 0:00:10]}  Rxe3 {[%clk 0:01:18]} 36. Rxb6 {[%clk 0:00:08]}  Re4+ {[%clk 0:01:18]} 0-1


[Site "https://www.chess.com"]

[Event "Titled Tuesday Blitz March 28 Early 2023"]
[White "Bongo Akanga Ndjila, Barthelemy"]
[Black "Toropov, Pavel"]
[WhiteFideId "10609431"]
[BlackFideId "24129178"]
[WhiteElo "1768"]
[BlackElo "2182"]
[Result "0-1"]
[Round "03"]
[TimeControl "180+2"]
[Date "2023.03.28"]
[WhiteClock "0:00:42"]
[BlackClock "0:00:31"]

1. d4 {[%clk 0:02:54]}  d5 {[%clk 0:02:59]} 2. c4 {[%clk 0:02:54]}  c6 {[%clk 0:03:00]} 3. Nc3 {[%clk 0:02:54]}  Nf6 {[%clk 0:03:00]} 4. Nf3 {[%clk 0:02:54]}  dxc4 {[%clk 0:03:00]} 5. e4 {[%clk 0:02:54]}  b5 {[%clk 0:03:00]} 6. Be2 {[%clk 0:02:53]}  e6 {[%clk 0:02:58]} 7. O-O {[%clk 0:02:53]}  Bb7 {[%clk 0:02:58]} 8. b3 {[%clk 0:02:53]}  cxb3 {[%clk 0:02:57]} 9. axb3 {[%clk 0:02:52]}  b4 {[%clk 0:02:51]} 10. Na4 {[%clk 0:02:50]}  Nxe4 {[%clk 0:02:50]} 11. Bb2 {[%clk 0:02:44]}  Nd7 {[%clk 0:02:48]} 12. Bd3 {[%clk 0:02:35]}  Nef6 {[%clk 0:02:46]} 13. Re1 {[%clk 0:02:34]}  Bd6 {[%clk 0:02:43]} 14. Ne5 {[%clk 0:02:27]}  O-O {[%clk 0:02:41]} 15. Qf3 {[%clk 0:02:24]}  Rc8 {[%clk 0:02:28]} 16. Qh3 {[%clk 0:02:23]}  h6 {[%clk 0:02:19]} 17. Rad1 {[%clk 0:02:17]}  Qc7 {[%clk 0:02:12]} 18. g4 {[%clk 0:01:25]}  c5 {[%clk 0:01:44]} 19. f4 {[%clk 0:01:23]}  cxd4 {[%clk 0:01:35]} 20. g5 {[%clk 0:01:22]}  Bxe5 {[%clk 0:00:55]} 21. fxe5 {[%clk 0:01:09]}  Nh7 {[%clk 0:00:41]} 22. g6 {[%clk 0:01:01]}  fxg6 {[%clk 0:00:40]} 23. Qxe6+ {[%clk 0:01:01]}  Kh8 {[%clk 0:00:40]} 24. Qxg6 {[%clk 0:00:57]}  Ng5 {[%clk 0:00:35]} 25. h4 {[%clk 0:00:53]}  Nxe5 {[%clk 0:00:32]} 26. Rxe5 {[%clk 0:00:42]}  Qxe5 {[%clk 0:00:32]} 27. hxg5 {[%clk 0:00:42]}  Qg3# {[%clk 0:00:31]} 0-1


[Site "https://www.chess.com"]

[Event "Titled Tuesday Blitz March 28 Early 2023"]
[White "Winkels, Marcel"]
[Black "Koellner, Ruben Gideon"]
[WhiteFideId "1003887"]
[BlackFideId "12993093"]
[WhiteElo "1900"]
[BlackElo "2303"]
[Result "0-1"]
[Round "03"]
[TimeControl "180+2"]
[Date "2023.03.28"]
[WhiteClock "0:00:02"]
[BlackClock "0:00:23"]

1. d4 {[%clk 0:03:00]}  d6 {[%clk 0:03:00]} 2. e4 {[%clk 0:02:59]}  Nf6 {[%clk 0:03:01]} 3. Nc3 {[%clk 0:02:59]}  e5 {[%clk 0:03:02]} 4. Nf3 {[%clk 0:02:58]}  Nbd7 {[%clk 0:03:02]} 5. Bc4 {[%clk 0:02:55]}  Be7 {[%clk 0:03:02]} 6. a4 {[%clk 0:02:55]}  c6 {[%clk 0:03:02]} 7. a5 {[%clk 0:02:54]}  h6 {[%clk 0:03:02]} 8. O-O {[%clk 0:02:50]}  Qc7 {[%clk 0:03:02]} 9. h3 {[%clk 0:02:44]}  Nf8 {[%clk 0:03:03]} 10. Be3 {[%clk 0:02:44]}  g5 {[%clk 0:03:03]} 11. Nh2 {[%clk 0:02:21]}  Ng6 {[%clk 0:03:03]} 12. f3 {[%clk 0:02:18]}  Nf4 {[%clk 0:02:59]} 13. Ng4 {[%clk 0:02:16]}  h5 {[%clk 0:02:54]} 14. Nxf6+ {[%clk 0:02:16]}  Bxf6 {[%clk 0:02:55]} 15. Kh2 {[%clk 0:02:15]}  h4 {[%clk 0:02:55]} 16. Bxf4 {[%clk 0:01:53]}  gxf4 {[%clk 0:02:56]} 17. d5 {[%clk 0:01:53]}  Rg8 {[%clk 0:02:51]} 18. Qd2 {[%clk 0:01:46]}  Rg3 {[%clk 0:02:50]} 19. Rh1 {[%clk 0:01:25]}  Bd7 {[%clk 0:02:33]} 20. Ne2 {[%clk 0:01:22]}  Ke7 {[%clk 0:02:26]} 21. Nxg3 {[%clk 0:01:12]}  hxg3+ {[%clk 0:02:27]} 22. Kg1 {[%clk 0:01:12]}  cxd5 {[%clk 0:02:15]} 23. Bxd5 {[%clk 0:01:10]}  Qc5+ {[%clk 0:02:13]} 24. Kf1 {[%clk 0:01:09]}  Bb5+ {[%clk 0:02:10]} 25. Ke1 {[%clk 0:01:07]}  Bh4 {[%clk 0:01:52]} 26. c4 {[%clk 0:01:05]}  Bxc4 {[%clk 0:01:44]} 27. Rc1 {[%clk 0:01:04]}  Qf2+ {[%clk 0:01:43]} 28. Kd1 {[%clk 0:00:48]}  Bxd5 {[%clk 0:01:36]} 29. Qxf2 {[%clk 0:00:35]}  gxf2 {[%clk 0:01:31]} 30. exd5 {[%clk 0:00:34]}  Rg8 {[%clk 0:01:22]} 31. Rc7+ {[%clk 0:00:20]}  Kd8 {[%clk 0:00:25]} 32. Rxb7 {[%clk 0:00:14]}  Rxg2 {[%clk 0:00:26]} 33. Rf1 {[%clk 0:00:05]}  e4 {[%clk 0:00:25]} 34. Ke2 {[%clk 0:00:02]}  exf3+ {[%clk 0:00:23]} 35. Kxf3 {[%clk 0:00:02]}  Rg1 {[%clk 0:00:24]} 36. Ke2 {[%clk 0:00:02]}  f3+ {[%clk 0:00:23]} 0-1


[Site "https://www.chess.com"]

[Event "Titled Tuesday Blitz March 28 Early 2023"]
[White "Zaragatski, Ilja"]
[Black "Delorme, Alban"]
[WhiteFideId "4655192"]
[BlackFideId "623636"]
[WhiteElo "2460"]
[BlackElo "2196"]
[Result "0-1"]
[Round "03"]
[TimeControl "180+2"]
[Date "2023.03.28"]
[WhiteClock "0:00:11"]
[BlackClock "0:00:13"]

1. e4 {[%clk 0:03:00]}  c5 {[%clk 0:02:59]} 2. Nf3 {[%clk 0:03:00]}  d6 {[%clk 0:03:00]} 3. d4 {[%clk 0:03:00]}  cxd4 {[%clk 0:03:01]} 4. Nxd4 {[%clk 0:03:01]}  Nf6 {[%clk 0:03:01]} 5. Nc3 {[%clk 0:03:02]}  a6 {[%clk 0:03:02]} 6. f3 {[%clk 0:03:02]}  e5 {[%clk 0:03:02]} 7. Nb3 {[%clk 0:03:02]}  Be7 {[%clk 0:03:03]} 8. Be3 {[%clk 0:03:01]}  Be6 {[%clk 0:03:04]} 9. Qd2 {[%clk 0:03:01]}  Nbd7 {[%clk 0:03:04]} 10. O-O-O {[%clk 0:03:01]}  O-O {[%clk 0:03:05]} 11. g4 {[%clk 0:03:02]}  b5 {[%clk 0:03:06]} 12. Nd5 {[%clk 0:03:01]}  Bxd5 {[%clk 0:03:03]} 13. exd5 {[%clk 0:03:02]}  Nb6 {[%clk 0:02:57]} 14. Na5 {[%clk 0:03:02]}  Nfxd5 {[%clk 0:02:38]} 15. Nc6 {[%clk 0:03:01]}  Qd7 {[%clk 0:02:37]} 16. Nxe7+ {[%clk 0:03:01]}  Qxe7 {[%clk 0:02:37]} 17. Bxb6 {[%clk 0:03:01]}  Nxb6 {[%clk 0:02:36]} 18. Qxd6 {[%clk 0:03:02]}  Qg5+ {[%clk 0:02:36]} 19. Qd2 {[%clk 0:03:02]}  Qf6 {[%clk 0:02:33]} 20. g5 {[%clk 0:02:50]}  Qxf3 {[%clk 0:02:25]} 21. Bg2 {[%clk 0:02:49]}  Qf5 {[%clk 0:01:59]} 22. Rhf1 {[%clk 0:02:43]}  Qe6 {[%clk 0:01:57]} 23. Bxa8 {[%clk 0:02:43]}  Qxa2 {[%clk 0:01:57]} 24. Qc3 {[%clk 0:01:37]}  Nc4 {[%clk 0:01:15]} 25. b3 {[%clk 0:01:36]}  Qa3+ {[%clk 0:01:10]} 26. Kb1 {[%clk 0:01:36]}  Rxa8 {[%clk 0:01:08]} 27. Rd7 {[%clk 0:01:07]}  Rf8 {[%clk 0:00:50]} 28. h4 {[%clk 0:00:50]}  a5 {[%clk 0:00:41]} 29. h5 {[%clk 0:00:42]}  a4 {[%clk 0:00:39]} 30. g6 {[%clk 0:00:35]}  axb3 {[%clk 0:00:22]} 31. gxf7+ {[%clk 0:00:13]}  Kh8 {[%clk 0:00:20]} 32. Qxb3 {[%clk 0:00:13]}  Qa5 {[%clk 0:00:16]} 33. Rfd1 {[%clk 0:00:11]}  Ra8 {[%clk 0:00:13]} 0-1


[Site "https://www.chess.com"]

[Event "Titled Tuesday Blitz March 28 Early 2023"]
[White "Benevides Demasi, Joao Otavio"]
[Black "Defend1r"]
[WhiteFideId "30916224"]
[WhiteElo "2116"]
[BlackElo "2529"]
[Result "0-1"]
[Round "03"]
[TimeControl "180+2"]
[Date "2023.03.28"]
[WhiteClock "0:00:16"]
[BlackClock "0:00:46"]

1. Nf3 {[%clk 0:03:00]}  Nf6 {[%clk 0:02:58]} 2. d3 {[%clk 0:03:01]}  b6 {[%clk 0:02:58]} 3. g3 {[%clk 0:02:59]}  Bb7 {[%clk 0:02:58]} 4. Bg2 {[%clk 0:03:00]}  d5 {[%clk 0:02:57]} 5. O-O {[%clk 0:03:00]}  c5 {[%clk 0:02:58]} 6. c4 {[%clk 0:03:00]}  d4 {[%clk 0:02:57]} 7. Na3 {[%clk 0:03:01]}  Nc6 {[%clk 0:02:53]} 8. Re1 {[%clk 0:03:01]}  e6 {[%clk 0:02:53]} 9. Nc2 {[%clk 0:03:01]}  Be7 {[%clk 0:02:52]} 10. a3 {[%clk 0:03:00]}  a5 {[%clk 0:02:50]} 11. b3 {[%clk 0:03:00]}  O-O {[%clk 0:02:49]} 12. Rb1 {[%clk 0:03:01]}  Qd7 {[%clk 0:02:41]} 13. Bd2 {[%clk 0:03:01]}  Rfd8 {[%clk 0:02:41]} 14. b4 {[%clk 0:03:01]}  axb4 {[%clk 0:02:41]} 15. axb4 {[%clk 0:03:01]}  Ra2 {[%clk 0:02:24]} 16. bxc5 {[%clk 0:02:53]}  Bxc5 {[%clk 0:02:21]} 17. Nb4 {[%clk 0:02:47]}  Nxb4 {[%clk 0:02:16]} 18. Bxb4 {[%clk 0:02:47]}  Rda8 {[%clk 0:01:57]} 19. Bxc5 {[%clk 0:02:38]}  bxc5 {[%clk 0:01:57]} 20. Rxb7 {[%clk 0:02:03]}  Qxb7 {[%clk 0:01:49]} 21. Ne5 {[%clk 0:01:59]}  Qc7 {[%clk 0:01:45]} 22. Bxa8 {[%clk 0:01:57]}  Rxa8 {[%clk 0:01:45]} 23. f4 {[%clk 0:01:46]}  g6 {[%clk 0:01:44]} 24. Qb3 {[%clk 0:01:42]}  Kg7 {[%clk 0:01:40]} 25. Rb1 {[%clk 0:01:42]}  Nd7 {[%clk 0:01:36]} 26. Qb7 {[%clk 0:01:34]}  Qxb7 {[%clk 0:01:36]} 27. Rxb7 {[%clk 0:01:34]}  Nxe5 {[%clk 0:01:36]} 28. fxe5 {[%clk 0:01:34]}  Rc8 {[%clk 0:01:22]} 29. Kf2 {[%clk 0:01:32]}  g5 {[%clk 0:01:22]} 30. Kf3 {[%clk 0:01:28]}  h5 {[%clk 0:01:22]} 31. e3 {[%clk 0:01:24]}  dxe3 {[%clk 0:01:19]} 32. Kxe3 {[%clk 0:01:25]}  Kg6 {[%clk 0:01:13]} 33. d4 {[%clk 0:01:23]}  cxd4+ {[%clk 0:01:12]} 34. Kxd4 {[%clk 0:01:23]}  Rd8+ {[%clk 0:01:13]} 35. Ke4 {[%clk 0:01:23]}  h4 {[%clk 0:01:09]} 36. c5 {[%clk 0:01:19]}  Rd2 {[%clk 0:01:08]} 37. c6 {[%clk 0:01:16]}  Rxh2 {[%clk 0:01:07]} 38. gxh4 {[%clk 0:01:15]}  gxh4 {[%clk 0:01:08]} 39. c7 {[%clk 0:01:15]}  Rc2 {[%clk 0:01:08]} 40. Kd3 {[%clk 0:01:13]}  Rc6 {[%clk 0:01:06]} 41. Rb4 {[%clk 0:01:04]}  Rxc7 {[%clk 0:01:02]} 42. Rxh4 {[%clk 0:01:04]}  Kf5 {[%clk 0:01:00]} 43. Rh5+ {[%clk 0:01:04]}  Kf4 {[%clk 0:01:00]} 44. Kd4 {[%clk 0:01:01]}  Rd7+ {[%clk 0:01:00]} 45. Kc4 {[%clk 0:00:55]}  Ke4 {[%clk 0:01:00]} 46. Kc3 {[%clk 0:00:52]}  Rd3+ {[%clk 0:00:56]} 47. Kc2 {[%clk 0:00:52]}  Rf3 {[%clk 0:00:57]} 48. Kd2 {[%clk 0:00:42]}  Rf5 {[%clk 0:00:56]} 49. Rh4+ {[%clk 0:00:34]}  Kxe5 {[%clk 0:00:55]} 50. Ke3 {[%clk 0:00:35]}  Rg5 {[%clk 0:00:55]} 51. Re4+ {[%clk 0:00:34]}  Kf6 {[%clk 0:00:55]} 52. Rf4+ {[%clk 0:00:35]}  Rf5 {[%clk 0:00:55]} 53. Rg4 {[%clk 0:00:35]}  Rf1 {[%clk 0:00:55]} 54. Ke4 {[%clk 0:00:33]}  e5 {[%clk 0:00:53]} 55. Rh4 {[%clk 0:00:31]}  Re1+ {[%clk 0:00:51]} 56. Kf3 {[%clk 0:00:30]}  Ke6 {[%clk 0:00:51]} 57. Rh6+ {[%clk 0:00:28]}  f6 {[%clk 0:00:50]} 58. Rh5 {[%clk 0:00:24]}  Ra1 {[%clk 0:00:49]} 59. Ke4 {[%clk 0:00:22]}  Ra3 {[%clk 0:00:48]} 60. Rh6 {[%clk 0:00:20]}  Rg3 {[%clk 0:00:45]} 61. Rh5 {[%clk 0:00:18]}  f5+ {[%clk 0:00:45]} 62. Rxf5 {[%clk 0:00:16]}  Rg4+ {[%clk 0:00:46]} 0-1


[Site "https://www.chess.com"]

[Event "Titled Tuesday Blitz March 28 Early 2023"]
[White "lolliNOPE"]
[Black "Sanchez Alvares, Kelvin Antonio"]
[BlackFideId "3906680"]
[WhiteElo "2061"]
[BlackElo "2217"]
[Result "1-0"]
[Round "03"]
[TimeControl "180+2"]
[Date "2023.03.28"]
[WhiteClock "0:00:34"]
[BlackClock "0:00:02"]

1. e4 {[%clk 0:03:00]}  e5 {[%clk 0:02:56]} 2. Nc3 {[%clk 0:02:53]}  Nc6 {[%clk 0:02:39]} 3. f4 {[%clk 0:02:51]}  exf4 {[%clk 0:02:34]} 4. Nf3 {[%clk 0:02:50]}  g5 {[%clk 0:02:31]} 5. h4 {[%clk 0:02:50]}  g4 {[%clk 0:02:24]} 6. Ng5 {[%clk 0:02:49]}  h6 {[%clk 0:02:21]} 7. Nxf7 {[%clk 0:02:48]}  Kxf7 {[%clk 0:02:20]} 8. d4 {[%clk 0:02:41]}  d6 {[%clk 0:02:11]} 9. Bxf4 {[%clk 0:02:38]}  Nf6 {[%clk 0:01:46]} 10. Bc4+ {[%clk 0:02:36]}  Kg7 {[%clk 0:01:38]} 11. Qd2 {[%clk 0:02:30]}  Nh5 {[%clk 0:01:08]} 12. O-O-O {[%clk 0:02:18]}  Be7 {[%clk 0:01:03]} 13. Rdf1 {[%clk 0:02:13]}  Nxf4 {[%clk 0:00:48]} 14. Rxf4 {[%clk 0:02:09]}  Rf8 {[%clk 0:00:47]} 15. Rhf1 {[%clk 0:02:06]}  Rxf4 {[%clk 0:00:40]} 16. Rxf4 {[%clk 0:02:00]}  Bxh4 {[%clk 0:00:40]} 17. Rf7+ {[%clk 0:01:59]}  Kg6 {[%clk 0:00:39]} 18. Qd3 {[%clk 0:01:45]}  Nb4 {[%clk 0:00:30]} 19. Qf1 {[%clk 0:01:35]}  d5 {[%clk 0:00:17]} 20. Nxd5 {[%clk 0:01:32]}  Qg5+ {[%clk 0:00:16]} 21. Kb1 {[%clk 0:01:31]}  Be6 {[%clk 0:00:13]} 22. Ne7+ {[%clk 0:01:29]}  Kh5 {[%clk 0:00:13]} 23. Rf5 {[%clk 0:01:19]}  Bxf5 {[%clk 0:00:11]} 24. Bf7+ {[%clk 0:01:19]}  Bg6 {[%clk 0:00:11]} 25. Bxg6+ {[%clk 0:01:04]}  Qxg6 {[%clk 0:00:10]} 26. Nxg6 {[%clk 0:01:04]}  Kxg6 {[%clk 0:00:11]} 27. Qf5+ {[%clk 0:01:01]}  Kg7 {[%clk 0:00:11]} 28. Qd7+ {[%clk 0:00:56]}  Kg8 {[%clk 0:00:07]} 29. Qxg4+ {[%clk 0:00:49]}  Bg5 {[%clk 0:00:07]} 30. Qe6+ {[%clk 0:00:49]}  Kg7 {[%clk 0:00:07]} 31. c3 {[%clk 0:00:48]}  Nc6 {[%clk 0:00:04]} 32. Qd7+ {[%clk 0:00:47]}  Ne7 {[%clk 0:00:03]} 33. Qxc7 {[%clk 0:00:46]}  Rf8 {[%clk 0:00:02]} 34. Qxb7 {[%clk 0:00:44]}  Rf1+ {[%clk 0:00:03]} 35. Kc2 {[%clk 0:00:44]}  Rf2+ {[%clk 0:00:03]} 36. Kb3 {[%clk 0:00:43]}  Rxg2 {[%clk 0:00:03]} 37. d5 {[%clk 0:00:42]}  Rd2 {[%clk 0:00:02]} 38. c4 {[%clk 0:00:38]}  Kf6 {[%clk 0:00:02]} 39. Qa6+ {[%clk 0:00:34]} 1-0


[Site "https://www.chess.com"]

[Event "Titled Tuesday Blitz March 28 Early 2023"]
[White "Van Osch, Mees"]
[Black "Janaszak, Dawid"]
[WhiteFideId "1035967"]
[BlackFideId "1119206"]
[WhiteElo "2324"]
[BlackElo "2220"]
[Result "0-1"]
[Round "03"]
[TimeControl "180+2"]
[Date "2023.03.28"]
[WhiteClock "0:00:08"]
[BlackClock "0:00:12"]

1. e4 {[%clk 0:02:54]}  c5 {[%clk 0:02:58]} 2. Nf3 {[%clk 0:02:53]}  Nc6 {[%clk 0:02:59]} 3. d4 {[%clk 0:02:53]}  cxd4 {[%clk 0:03:00]} 4. Nxd4 {[%clk 0:02:54]}  e5 {[%clk 0:03:00]} 5. Nb5 {[%clk 0:02:53]}  d6 {[%clk 0:03:01]} 6. N1c3 {[%clk 0:02:47]}  a6 {[%clk 0:03:00]} 7. Na3 {[%clk 0:02:47]}  b5 {[%clk 0:02:58]} 8. Nd5 {[%clk 0:02:45]}  Nge7 {[%clk 0:02:56]} 9. Bg5 {[%clk 0:02:42]}  h6 {[%clk 0:02:55]} 10. Bxb5 {[%clk 0:02:36]}  axb5 {[%clk 0:02:51]} 11. Nxb5 {[%clk 0:02:32]}  Ra7 {[%clk 0:02:46]} 12. Nxa7 {[%clk 0:02:31]}  hxg5 {[%clk 0:02:24]} 13. Nxc8 {[%clk 0:01:51]}  Qxc8 {[%clk 0:02:20]} 14. O-O {[%clk 0:01:46]}  Nxd5 {[%clk 0:02:18]} 15. Qxd5 {[%clk 0:01:39]}  Nd4 {[%clk 0:02:07]} 16. c3 {[%clk 0:01:29]}  Ne2+ {[%clk 0:01:53]} 17. Kh1 {[%clk 0:01:28]}  Qg4 {[%clk 0:01:53]} 18. Qd3 {[%clk 0:00:08]}  Rh6 {[%clk 0:01:05]} 19. Rfe1 {[%clk 0:00:06]}  Qxg2+ {[%clk 0:00:43]} 20. Kxg2 {[%clk 0:00:04]}  Nf4+ {[%clk 0:00:44]} 21. Kg1 {[%clk 0:00:02]}  Nxd3 {[%clk 0:00:43]} 22. Re3 {[%clk 0:00:02]}  Nxb2 {[%clk 0:00:40]} 23. a4 {[%clk 0:00:03]}  Nc4 {[%clk 0:00:38]} 24. Ree1 {[%clk 0:00:03]}  d5 {[%clk 0:00:36]} 25. exd5 {[%clk 0:00:01]}  Bc5 {[%clk 0:00:36]} 26. a5 {[%clk 0:00:01]}  Rf6 {[%clk 0:00:37]} 27. Re2 {[%clk 0:00:01]}  Ra6 {[%clk 0:00:29]} 28. Ra4 {[%clk 0:00:01]}  Nd6 {[%clk 0:00:19]} 29. Rxe5+ {[%clk 0:00:02]}  Kd7 {[%clk 0:00:20]} 30. Rxg5 {[%clk 0:00:02]}  g6 {[%clk 0:00:20]} 31. Rg3 {[%clk 0:00:02]}  Ra7 {[%clk 0:00:16]} 32. Rf3 {[%clk 0:00:03]}  f5 {[%clk 0:00:16]} 33. Rh3 {[%clk 0:00:04]}  Ke7 {[%clk 0:00:11]} 34. Rh7+ {[%clk 0:00:04]}  Nf7 {[%clk 0:00:12]} 35. a6 {[%clk 0:00:05]}  Kf6 {[%clk 0:00:12]} 36. Rh3 {[%clk 0:00:05]}  Ng5 {[%clk 0:00:13]} 37. Rd3 {[%clk 0:00:05]}  Ne4 {[%clk 0:00:13]} 38. c4 {[%clk 0:00:06]}  Nxf2 {[%clk 0:00:13]} 39. Rb3 {[%clk 0:00:07]}  Ne4+ {[%clk 0:00:12]} 40. Kf1 {[%clk 0:00:07]}  Nd2+ {[%clk 0:00:11]} 41. Ke2 {[%clk 0:00:07]}  Nxb3 {[%clk 0:00:12]} 42. Ra5 {[%clk 0:00:07]}  Nxa5 {[%clk 0:00:12]} 43. Kd3 {[%clk 0:00:08]}  Rxa6 {[%clk 0:00:12]} 44. Kc3 {[%clk 0:00:08]}  Bd6 {[%clk 0:00:12]} 0-1


[Site "https://www.chess.com"]

[Event "Titled Tuesday Blitz March 28 Early 2023"]
[White "Titichoca Daza, Daniel"]
[Black "Escanor89"]
[WhiteFideId "3309550"]
[WhiteElo "2095"]
[BlackElo "2531"]
[Result "0-1"]
[Round "03"]
[TimeControl "180+2"]
[Date "2023.03.28"]
[WhiteClock "0:00:01"]
[BlackClock "0:00:06"]

1. e4 {[%clk 0:02:51]}  c5 {[%clk 0:02:59]} 2. Nc3 {[%clk 0:02:50]}  Nc6 {[%clk 0:02:59]} 3. Nf3 {[%clk 0:02:48]}  e6 {[%clk 0:02:56]} 4. d4 {[%clk 0:02:47]}  cxd4 {[%clk 0:02:56]} 5. Nxd4 {[%clk 0:02:48]}  Nf6 {[%clk 0:02:56]} 6. Nxc6 {[%clk 0:02:39]}  bxc6 {[%clk 0:02:56]} 7. e5 {[%clk 0:02:39]}  Nd5 {[%clk 0:02:56]} 8. Ne4 {[%clk 0:02:40]}  Qc7 {[%clk 0:02:55]} 9. f4 {[%clk 0:02:38]}  Qb6 {[%clk 0:02:54]} 10. c4 {[%clk 0:02:39]}  Bb4+ {[%clk 0:02:54]} 11. Ke2 {[%clk 0:02:39]}  Ba6 {[%clk 0:02:47]} 12. Kf3 {[%clk 0:02:39]}  f5 {[%clk 0:02:42]} 13. exf6 {[%clk 0:02:01]}  Nxf6 {[%clk 0:02:40]} 14. c5 {[%clk 0:01:58]}  Qa5 {[%clk 0:02:20]} 15. Nd6+ {[%clk 0:01:47]}  Ke7 {[%clk 0:02:12]} 16. Bxa6 {[%clk 0:01:44]}  Qxa6 {[%clk 0:02:02]} 17. Be3 {[%clk 0:01:44]}  Nd5 {[%clk 0:01:38]} 18. Qd4 {[%clk 0:01:35]}  Rhg8 {[%clk 0:01:17]} 19. g4 {[%clk 0:01:12]}  Raf8 {[%clk 0:01:15]} 20. Kg3 {[%clk 0:01:11]}  Qe2 {[%clk 0:00:58]} 21. Bc1 {[%clk 0:01:06]}  Be1+ {[%clk 0:00:49]} 22. Rxe1 {[%clk 0:01:01]}  Qxe1+ {[%clk 0:00:49]} 23. Qf2 {[%clk 0:00:55]}  Qb4 {[%clk 0:00:32]} 24. f5 {[%clk 0:00:51]}  g6 {[%clk 0:00:31]} 25. Bd2 {[%clk 0:00:41]}  Qa4 {[%clk 0:00:09]} 26. b3 {[%clk 0:00:36]}  Qa6 {[%clk 0:00:09]} 27. Bg5+ {[%clk 0:00:36]}  Nf6 {[%clk 0:00:10]} 28. fxe6 {[%clk 0:00:34]}  Qd3+ {[%clk 0:00:09]} 29. Qf3 {[%clk 0:00:29]}  Qxf3+ {[%clk 0:00:08]} 30. Kxf3 {[%clk 0:00:30]}  dxe6 {[%clk 0:00:08]} 31. Ne4 {[%clk 0:00:25]}  h6 {[%clk 0:00:06]} 32. Bxf6+ {[%clk 0:00:20]}  Rxf6+ {[%clk 0:00:07]} 33. Nxf6 {[%clk 0:00:19]}  Rf8 {[%clk 0:00:06]} 34. Ke3 {[%clk 0:00:13]}  Rxf6 {[%clk 0:00:06]} 35. Rh1 {[%clk 0:00:11]}  h5 {[%clk 0:00:05]} 36. gxh5 {[%clk 0:00:10]}  gxh5 {[%clk 0:00:06]} 37. Rg1 {[%clk 0:00:10]}  Rf5 {[%clk 0:00:06]} 38. Rg7+ {[%clk 0:00:10]}  Kf6 {[%clk 0:00:06]} 39. Rxa7 {[%clk 0:00:10]}  Rxc5 {[%clk 0:00:07]} 40. Kf3 {[%clk 0:00:08]}  Rc3+ {[%clk 0:00:06]} 41. Kf2 {[%clk 0:00:03]}  Rc2+ {[%clk 0:00:05]} 42. Kg3 {[%clk 0:00:02]}  c5 {[%clk 0:00:06]} 43. a4 {[%clk 0:00:01]}  Rc3+ {[%clk 0:00:06]} 0-1


[Site "https://www.chess.com"]

[Event "Titled Tuesday Blitz March 28 Early 2023"]
[White "Golubev, Mikhail"]
[Black "Zampronha, Wladimir Camilo"]
[WhiteFideId "14100983"]
[BlackFideId "2103087"]
[WhiteElo "2374"]
[BlackElo "2176"]
[Result "1-0"]
[Round "03"]
[TimeControl "180+2"]
[Date "2023.03.28"]
[WhiteClock "0:00:27"]
[BlackClock "0:00:19"]

1. e4 {[%clk 0:03:00]}  c5 {[%clk 0:02:59]} 2. Nf3 {[%clk 0:03:00]}  e6 {[%clk 0:03:00]} 3. d4 {[%clk 0:03:00]}  cxd4 {[%clk 0:03:01]} 4. Nxd4 {[%clk 0:03:00]}  Nc6 {[%clk 0:03:01]} 5. Nc3 {[%clk 0:03:00]}  Qc7 {[%clk 0:03:01]} 6. Be3 {[%clk 0:03:01]}  a6 {[%clk 0:03:01]} 7. Bd3 {[%clk 0:03:00]}  Nf6 {[%clk 0:03:02]} 8. O-O {[%clk 0:03:00]}  Ne5 {[%clk 0:03:00]} 9. Be2 {[%clk 0:02:57]}  Bb4 {[%clk 0:02:55]} 10. f4 {[%clk 0:02:51]}  Bxc3 {[%clk 0:02:49]} 11. fxe5 {[%clk 0:02:43]}  Bxd4 {[%clk 0:02:41]} 12. Qxd4 {[%clk 0:02:40]}  Ng8 {[%clk 0:02:40]} 13. Bg5 {[%clk 0:02:05]}  b6 {[%clk 0:02:19]} 14. Qf2 {[%clk 0:01:55]}  Qc5 {[%clk 0:02:10]} 15. Be3 {[%clk 0:01:53]}  Qe7 {[%clk 0:02:09]} 16. Bxb6 {[%clk 0:01:53]}  Nh6 {[%clk 0:02:07]} 17. Bc5 {[%clk 0:01:46]}  Qg5 {[%clk 0:02:06]} 18. Qd4 {[%clk 0:01:30]}  Bb7 {[%clk 0:02:01]} 19. Bd3 {[%clk 0:01:20]}  Ng4 {[%clk 0:01:54]} 20. Be2 {[%clk 0:00:59]}  Rc8 {[%clk 0:01:12]} 21. Rxf7 {[%clk 0:00:35]}  Kxf7 {[%clk 0:01:06]} 22. Qxd7+ {[%clk 0:00:34]}  Kg6 {[%clk 0:01:06]} 23. Qxe6+ {[%clk 0:00:33]}  Nf6 {[%clk 0:00:51]} 24. h4 {[%clk 0:00:30]}  Qg3 {[%clk 0:00:28]} 25. exf6 {[%clk 0:00:28]}  Rxc5 {[%clk 0:00:19]} 26. f7# {[%clk 0:00:27]} 1-0


[Site "https://www.chess.com"]